fUST/lending_fUST_20250709
["ID","MTS","AMOUNT","RATE_DAILY","PERIOD"]
[370409222,1752004245428,-460.0,0.00020273,2]
[370409223,1752004245439,-460.0,0.00020273,2]
[370409224,1752004245449,-502.93,0.00020273,2]
[370409225,1752004245459,-1004.48,0.00020273,2]
[370409226,1752004245470,-460.0,0.00020273,2]
[370409227,1752004245480,-460.0,0.00020273,2]
[370409228,1752004245491,-567.32498537,0.00020348,3]
[370409229,1752004245502,-460.0,0.00020547,2]
[370409230,1752004245513,-460.0,0.00020547,2]
[370409231,1752004245523,-460.0,0.00020547,2]
[370409232,1752004245538,-151.41404286,0.00020547,2]
[370409233,1752004245548,-239.67,0.00020547,2]
[370409234,1752004245559,-460.0,0.00020547,2]
[370409235,1752004245569,-504.62,0.00020547,2]
[370409236,1752004245582,-460.0,0.00020547,2]
[370409237,1752004245592,-460.0,0.00020547,2]
[370409238,1752004245603,-460.0,0.00020547,2]
[370409239,1752004245616,-460.0,0.00020547,2]
[370409240,1752004245629,-460.0,0.00020547,2]
[370409241,1752004245640,-460.0,0.00020547,2]
[370409242,1752004245650,-460.0,0.00020547,2]
[370409243,1752004245662,-966.04,0.00020547,2]
[370409244,1752004245673,-711.5,0.00020547,2]
[370409245,1752004245684,-460.0,0.00020547,2]
[370409246,1752004245695,-593.0,0.00020547,2]
[370409247,1752004245706,-460.0,0.00020547,2]
[370409248,1752004245717,-460.0,0.00020547,2]
[370409249,1752004245728,-460.0,0.00020547,2]
[370409250,1752004245740,-554.45,0.00020547,2]
[370409251,1752004245751,-460.0,0.00020547,2]
[370409252,1752004245762,-541.54,0.00020547,2]
[370409253,1752004245774,-460.0,0.00020547,2]
[370409254,1752004245786,-468.68,0.00020547,2]
[370409255,1752004245797,-460.0,0.00020547,2]
[370409256,1752004245808,-460.0,0.00020547,2]
[370409257,1752004245820,-460.0,0.00020547,2]
[370409258,1752004245831,-460.0,0.00020547,2]
[370409259,1752004245842,-662.08,0.00020547,2]
[370409260,1752004245854,-460.0,0.00020547,2]
[370409261,1752004245865,-460.0,0.00020547,2]
[370409262,1752004245875,-465.26,0.00020547,2]
[370409263,1752004245886,-460.0,0.00020547,2]
[370409264,1752004245897,-460.0,0.00020547,2]
[370409265,1752004245908,-460.0,0.00020547,2]
[370409266,1752004245920,-460.0,0.00020547,2]
[370409267,1752004245930,-460.0,0.00020547,2]
[370409268,1752004245941,-460.0,0.00020547,2]
[370409269,1752004246129,-460.0,0.00020547,2]
[370409271,1752004246139,-460.0,0.00020547,2]
[370409272,1752004246148,-460.0,0.00020547,2]
[370409273,1752004246157,-460.0,0.00020547,2]
[370409274,1752004246167,-460.0,0.00020547,2]
[370409275,1752004246177,-175.98,0.00020547,2]
[370409276,1752004246185,-460.0,0.00020547,2]
[370409277,1752004246194,-1004.48,0.00020547,2]
[370409278,1752004246203,-460.0,0.00020547,2]
[370409279,1752004246213,-460.0,0.00020547,2]
[370409280,1752004246222,-567.32498537,0.0002059,3]
[370409281,1752004246231,-735.416,0.00020757,2]
[370409282,1752004246240,-460.0,0.00020821,2]
[370409283,1752004246249,-460.0,0.00020821,2]
[370409284,1752004246258,-343.88428137,0.00020821,2]
[370409285,1752004246267,-162.3,0.00020821,2]
[370409286,1752004246276,-460.0,0.00020821,2]
[370409287,1752004246286,-201.23135488,0.00020821,2]
[370409288,1752004246295,-451.73,0.00020821,2]
[370409289,1752004246305,-460.0,0.00020821,2]
[370409290,1752004246314,-966.04,0.00020821,2]
[370409291,1752004246323,-711.5,0.00020821,2]
[370409292,1752004246333,-152.65,0.00020821,2]
[370409293,1752004246342,-460.0,0.00020821,2]
[370409294,1752004246351,-460.0,0.00020821,2]
[370409295,1752004246360,-202.41090414,0.00020821,2]
[370409296,1752004246369,-554.45,0.00020821,2]
[370409297,1752004246379,-460.0,0.00020821,2]
[370409298,1752004246390,-541.54,0.00020821,2]
[370409299,1752004246399,-460.0,0.00020821,2]
[370409300,1752004246409,-468.68,0.00020821,2]
[370409301,1752004246420,-154.75978889,0.00020821,2]
[370409302,1752004246429,-460.0,0.00020821,2]
[370409303,1752004246439,-460.0,0.00020821,2]
[370409304,1752004246449,-662.08,0.00020821,2]
[370409305,1752004246458,-460.0,0.00020821,2]
[370409306,1752004246468,-400.11,0.00020821,2]
[370409307,1752004246478,-465.26,0.00020821,2]
[370409308,1752004246488,-460.0,0.00020821,2]
[370409309,1752004246498,-460.0,0.00020821,2]
[370409310,1752004246508,-460.0,0.00020821,2]
[370409311,1752004246517,-524.75,0.00020821,2]
[370409312,1752004246528,-460.0,0.00020821,2]
[370409313,1752004246542,-460.0,0.00020821,2]
[370409314,1752004246553,-460.0,0.00020821,2]
[370409315,1752004246563,-460.0,0.00020821,2]
[370409316,1752004246575,-460.0,0.00020821,2]
[370409317,1752004246584,-1004.48,0.00020821,2]
[370409318,1752004246594,-460.0,0.00020821,2]
[370409319,1752004246606,-460.0,0.00020821,2]
[370409320,1752004246616,-567.32498537,0.00020831,4]
[370409321,1752004246626,-567.32498537,0.00021072,4]
[370409322,1752004246636,-460.0,0.00021095,2]
[370409323,1752004246646,-460.0,0.00021095,2]
[370409324,1752004246655,-460.0,0.00021095,2]
[370409325,1752004246666,-966.04,0.00021095,2]
[370409326,1752004246675,-711.5,0.00021095,2]
[370409327,1752004246684,-460.0,0.00021095,2]
[370409328,1752004246694,-460.0,0.00021095,2]
[370409329,1752004246703,-554.45,0.00021095,2]
[370409330,1752004246713,-183.63,0.00021095,2]
[370409331,1752004246722,-541.54,0.00021095,2]
[370409332,1752004246732,-460.0,0.00021095,2]
[370409333,1752004246741,-468.68,0.00021095,2]
[370409334,1752004246751,-460.0,0.00021095,2]
[370409335,1752004246760,-460.0,0.00021095,2]
[370409337,1752004246771,-662.08,0.00021095,2]
[370409338,1752004246780,-607.98,0.00021095,2]
[370409339,1752004246790,-465.26,0.00021095,2]
[370409340,1752004246799,-460.0,0.00021095,2]
[370409341,1752004246809,-460.0,0.00021095,2]
[370409342,1752004246818,-460.0,0.00021095,2]
[370409343,1752004246827,-460.0,0.00021095,2]
[370409344,1752004246838,-460.0,0.00021095,2]
[370409345,1752004246847,-460.0,0.00021095,2]
[370409346,1752004246857,-1004.48,0.00021095,2]
[370409347,1752004246866,-460.0,0.00021095,2]
[370409349,1752004246876,-151.0,0.000212,4]
[370409350,1752004246885,-567.32498537,0.00021314,5]
[370409351,1752004246894,-460.0,0.00021369,2]
[370409352,1752004246903,-160.01986265,0.00021369,2]
[370409353,1752004246914,-460.0,0.00021369,2]
[370409354,1752004246923,-966.04,0.00021369,2]
[370409355,1752004246932,-711.5,0.00021369,2]
[370409356,1752004246941,-460.0,0.00021369,2]
[370409357,1752004246950,-554.45,0.00021369,2]
[370409358,1752004246959,-541.54,0.00021369,2]
[370409359,1752004246968,-460.0,0.00021369,2]
[370409360,1752004246977,-468.68,0.00021369,2]
[370409361,1752004246987,-483.74377633,0.00021369,2]
[370409362,1752004246996,-460.0,0.00021369,2]
[370409363,1752004247005,-662.08,0.00021369,2]
[370409364,1752004247014,-465.26,0.00021369,2]
[370409365,1752004247023,-298.12,0.00021369,2]
[370409366,1752004247032,-460.0,0.00021369,2]
[370409367,1752004247041,-460.0,0.00021369,2]
[370409368,1752004247051,-460.0,0.00021369,2]
[370409369,1752004247060,-460.0,0.00021369,2]
[370409370,1752004247069,-460.0,0.00021369,2]
[370409371,1752004247079,-1004.48,0.00021369,2]
[370409372,1752004247088,-460.0,0.00021369,2]
[370409373,1752004247097,-223.0315306,0.00021494,2]
[370409374,1752004247106,-567.32498537,0.00021555,5]
[370409375,1752004247116,-460.0,0.00021643,2]
[370409376,1752004247125,-460.0,0.00021643,2]
[370409377,1752004247134,-966.04,0.00021643,2]
[370409378,1752004247143,-711.5,0.00021643,2]
[370409379,1752004247152,-460.0,0.00021643,2]
[370409380,1752004247161,-554.45,0.00021643,2]
[370409381,1752004247170,-541.54,0.00021643,2]
[370409382,1752004247180,-460.0,0.00021643,2]
[370409383,1752004247189,-468.68,0.00021643,2]
[370409384,1752004247198,-460.0,0.00021643,2]
[370409385,1752004247207,-662.08,0.00021643,2]
[370409386,1752004247216,-465.26,0.00021643,2]
[370409387,1752004247226,-460.0,0.00021643,2]
[370409388,1752004247235,-460.0,0.00021643,2]
[370409389,1752004247244,-460.0,0.00021643,2]
[370409390,1752004247253,-460.0,0.00021643,2]
[370409391,1752004247263,-460.0,0.00021643,2]
[370409392,1752004247273,-1004.48,0.00021643,2]
[370409393,1752004247282,-460.0,0.00021643,2]
[370409394,1752004247291,-567.32498537,0.00021797,6]
[370409395,1752004247301,-151.0,0.000218,4]
[370409396,1752004247310,-500.0,0.00021917,2]
[370409397,1752004247319,-460.0,0.00021917,2]
[370409398,1752004247329,-460.0,0.00021917,2]
[370409399,1752004247338,-966.04,0.00021917,2]
[370409400,1752004247347,-711.5,0.00021917,2]
[370409401,1752004247356,-460.0,0.00021917,2]
[370409402,1752004247365,-554.45,0.00021917,2]
[370409403,1752004247375,-541.54,0.00021917,2]
[370409404,1752004247384,-460.0,0.00021917,2]
[370409405,1752004247394,-468.68,0.00021917,2]
[370409406,1752004247403,-460.0,0.00021917,2]
[370409407,1752004247413,-662.08,0.00021917,2]
[370409408,1752004247422,-465.26,0.00021917,2]
[370409409,1752004247432,-460.0,0.00021917,2]
[370409410,1752004247441,-460.0,0.00021917,2]
[370409411,1752004247450,-460.0,0.00021917,2]
[370409412,1752004247459,-460.0,0.00021917,2]
[370409413,1752004247469,-460.0,0.00021917,2]
[370409414,1752004247478,-1004.48,0.00021917,2]
[370409415,1752004247487,-460.0,0.00021917,2]
[370409416,1752004247497,-500.0,0.00021918,2]
[370409417,1752004247505,-500.0,0.00021918,2]
[370409418,1752004247514,-500.0,0.00021918,2]
[370409419,1752004247523,-500.0,0.00021918,2]
[370409420,1752004247537,-515.66789129,0.00021918,2]
[370409421,1752004247545,-500.0,0.00021918,2]
[370409422,1752004247555,-500.0,0.00021918,2]
[370409423,1752004247564,-500.0,0.00021918,2]
[370409424,1752004247573,-500.0,0.00021918,2]
[370409425,1752004247582,-500.0,0.00021918,2]
[370409426,1752004247591,-500.0,0.00021918,2]
[370409427,1752004247600,-500.0,0.00021918,2]
[370409428,1752004247610,-500.0,0.00021918,2]
[370409429,1752004247620,-500.0,0.00021918,2]
[370409430,1752004247630,-500.0,0.00021918,2]
[370409431,1752004247639,-500.0,0.00021918,2]
[370409432,1752004247649,-500.0,0.00021918,2]
[370409433,1752004247658,-500.0,0.00021918,2]
[370409434,1752004247668,-500.0,0.00021918,2]
[370409435,1752004247678,-500.0,0.00021918,2]
[370409436,1752004247688,-500.0,0.00021918,2]
[370409437,1752004247698,-200.0,0.00021918,2]
[370409438,1752004247708,-500.0,0.00021918,2]
[370409439,1752004247717,-500.0,0.00021918,2]
[370409440,1752004247727,-500.0,0.00021918,2]
[370409441,1752004247736,-500.0,0.00022027,2]
[370409442,1752004247746,-567.32498537,0.00022038,6]
[370409443,1752004247755,-460.0,0.00022191,2]
[370409444,1752004247765,-460.0,0.00022191,2]
[370409445,1752004247776,-966.04,0.00022191,2]
[370409446,1752004247786,-711.5,0.00022191,2]
[370409447,1752004247796,-240.56,0.00022191,2]
[370409448,1752004247806,-554.45,0.00022191,2]
[370409449,1752004247815,-541.54,0.00022191,2]
[370409450,1752004247825,-460.0,0.00022191,2]
[370409451,1752004247835,-468.68,0.00022191,2]
[370409452,1752004247844,-460.0,0.00022191,2]
[370409453,1752004247854,-662.08,0.00022191,2]
[370409454,1752004247864,-465.26,0.00022191,2]
[370409455,1752004247873,-460.0,0.00022191,2]
[370409456,1752004247883,-460.0,0.00022191,2]
[370409457,1752004247893,-460.0,0.00022191,2]
[370409458,1752004247902,-460.0,0.00022191,2]
[370409459,1752004247911,-460.0,0.00022191,2]
[370409460,1752004247921,-1004.48,0.00022191,2]
[370409461,1752004247931,-460.0,0.00022191,2]
[370409462,1752004247941,-567.32498537,0.00022279,6]
[370409463,1752004247951,-151.0,0.000224,10]
[370409464,1752004247961,-460.0,0.00022465,2]
[370409465,1752004247970,-460.0,0.00022465,2]
[370409466,1752004247979,-966.04,0.00022465,2]
[370409467,1752004247989,-711.5,0.00022465,2]
[370409468,1752004247998,-554.45,0.00022465,2]
[370409469,1752004248008,-541.54,0.00022465,2]
[370409470,1752004248017,-460.0,0.00022465,2]
[370409471,1752004248027,-468.68,0.00022465,2]
[370409472,1752004248037,-460.0,0.00022465,2]
[370409473,1752004248046,-662.08,0.00022465,2]
[370409474,1752004248055,-465.26,0.00022465,2]
[370409475,1752004248066,-460.0,0.00022465,2]
[370409476,1752004248077,-460.0,0.00022465,2]
[370409477,1752004248090,-460.0,0.00022465,2]
[370409478,1752004248099,-460.0,0.00022465,2]
[370409479,1752004248109,-460.0,0.00022465,2]
[370409480,1752004248118,-1004.48,0.00022465,2]
[370409481,1752004248128,-460.0,0.00022465,2]
[370409482,1752004248137,-567.32498537,0.00022521,7]
[370409483,1752004248147,-846.66,0.00022573,6]
[370409484,1752004248156,-846.66,0.00022673,7]
[370409485,1752004248167,-460.0,0.00022739,2]
[370409486,1752004248177,-170.87,0.00022739,2]
[370409487,1752004248186,-966.04,0.00022739,2]
[370409488,1752004248195,-711.5,0.00022739,2]
[370409489,1752004248205,-554.45,0.00022739,2]
[370409490,1752004248216,-541.54,0.00022739,2]
[370409491,1752004248225,-460.0,0.00022739,2]
[370409492,1752004248236,-468.68,0.00022739,2]
[370409493,1752004248245,-460.0,0.00022739,2]
[370409494,1752004248254,-662.08,0.00022739,2]
[370409495,1752004248263,-465.26,0.00022739,2]
[370409496,1752004248273,-460.0,0.00022739,2]
[370409497,1752004248282,-460.0,0.00022739,2]
[370409498,1752004248292,-521.55,0.00022739,2]
[370409499,1752004248301,-460.0,0.00022739,2]
[370409500,1752004248310,-460.0,0.00022739,2]
[370409501,1752004248323,-1004.48,0.00022739,2]
[370409502,1752004248332,-460.0,0.00022739,2]
[370409503,1752004248340,-567.32498537,0.00022762,7]
[370409504,1752004248350,-846.66,0.00022773,7]
[370409505,1752004248359,-231.28369723,0.00022863,2]
[370409506,1752004248368,-846.66,0.00022873,4]
[370409507,1752004248378,-150.0,0.00022941,2]
[370409508,1752004248388,-846.66,0.00022973,2]
[370409509,1752004248397,-567.32498537,0.00023003,8]
[370409510,1752004248407,-460.0,0.00023013,2]
[370409511,1752004248416,-966.04,0.00023013,2]
[370409512,1752004248425,-711.5,0.00023013,2]
[370409513,1752004248435,-554.45,0.00023013,2]
[370409514,1752004248444,-541.54,0.00023013,2]
[370409515,1752004248453,-460.0,0.00023013,2]
[370409516,1752004248462,-468.68,0.00023013,2]
[370409517,1752004248472,-662.08,0.00023013,2]
[370409518,1752004248482,-465.26,0.00023013,2]
[370409519,1752004248491,-460.0,0.00023013,2]
[370409520,1752004248500,-460.0,0.00023013,2]
[370409521,1752004248510,-460.0,0.00023013,2]
[370409522,1752004248519,-460.0,0.00023013,2]
[370409523,1752004248530,-1004.48,0.00023013,2]
[370409524,1752004248542,-460.0,0.00023013,2]
[370409525,1752004248551,-846.66,0.00023073,7]
[370409526,1752004248560,-151.0,0.000231,5]
[370409527,1752004248570,-846.66,0.00023173,7]
[370409528,1752004248579,-150.0,0.00023213,2]
[370409529,1752004248588,-567.32498537,0.00023245,8]
[370409530,1752004248597,-846.66,0.00023273,2]
[370409531,1752004248608,-460.0,0.00023287,2]
[370409532,1752004248618,-966.04,0.00023287,2]
[370409533,1752004248627,-711.5,0.00023287,2]
[370409534,1752004248637,-554.45,0.00023287,2]
[370409535,1752004248646,-541.54,0.00023287,2]
[370409536,1752004248656,-460.0,0.00023287,2]
[370409537,1752004248666,-468.68,0.00023287,2]
[370409538,1752004248676,-662.08,0.00023287,2]
[370409539,1752004248685,-465.26,0.00023287,2]
[370409540,1752004248694,-460.0,0.00023287,2]
[370409541,1752004248704,-460.0,0.00023287,2]
[370409542,1752004248713,-460.0,0.00023287,2]
[370409543,1752004248723,-460.0,0.00023287,2]
[370409544,1752004248732,-1004.48,0.00023287,2]
[370409545,1752004248742,-460.0,0.00023287,2]
[370409546,1752004248752,-846.66,0.00023373,7]
[370409547,1752004248762,-846.66,0.00023473,4]
[370409548,1752004248772,-567.32498537,0.00023486,9]
[370409549,1752004248781,-460.0,0.00023561,2]
[370409550,1752004248791,-966.04,0.00023561,2]
[370409551,1752004248801,-711.5,0.00023561,2]
[370409552,1752004248810,-554.45,0.00023561,2]
[370409553,1752004248820,-541.54,0.00023561,2]
[370409554,1752004248829,-460.0,0.00023561,2]
[370409555,1752004248838,-468.68,0.00023561,2]
[370409556,1752004248848,-662.08,0.00023561,2]
[370409557,1752004248857,-465.26,0.00023561,2]
[370409558,1752004248867,-460.0,0.00023561,2]
[370409559,1752004248876,-402.81361464,0.00023561,2]
[370409560,1752004248885,-460.0,0.00023561,2]
[370409561,1752004248895,-460.0,0.00023561,2]
[370409562,1752004248904,-1004.48,0.00023561,2]
[370409563,1752004248914,-460.0,0.00023561,2]
[370409564,1752004248924,-846.66,0.00023573,2]
[370409565,1752004248934,-846.66,0.00023673,4]
[370409566,1752004248943,-151.0,0.000237,5]
[370409567,1752004248953,-567.32498537,0.00023728,9]
[370409568,1752004248962,-846.66,0.00023773,5]
[370409569,1752004248971,-460.0,0.00023835,2]
[370409570,1752004248981,-966.04,0.00023835,2]
[370409571,1752004248990,-711.5,0.00023835,2]
[370409572,1752004249000,-554.45,0.00023835,2]
[370409573,1752004249009,-541.54,0.00023835,2]
[370409574,1752004249019,-460.0,0.00023835,2]
[370409575,1752004249029,-468.68,0.00023835,2]
[370409576,1752004249038,-662.08,0.00023835,2]
[370409577,1752004249048,-465.26,0.00023835,2]
[370409578,1752004249058,-460.0,0.00023835,2]
[370409579,1752004249067,-245.59,0.00023835,2]
[370409580,1752004249077,-590.64,0.00023835,2]
[370409581,1752004249087,-1004.48,0.00023835,2]
[370409582,1752004249096,-460.0,0.00023835,2]
[370409583,1752004249106,-846.66,0.00023873,7]
[370409584,1752004249116,-567.32498537,0.00023969,10]
[370409585,1752004249125,-846.66,0.00023973,3]
[370409586,1752004249134,-846.66,0.00024073,5]
[370409587,1752004249143,-460.0,0.00024109,2]
[370409588,1752004249153,-966.04,0.00024109,2]
[370409589,1752004249162,-711.5,0.00024109,2]
[370409590,1752004249172,-554.45,0.00024109,2]
[370409591,1752004249181,-541.54,0.00024109,2]
[370409592,1752004249323,-247.34832115,0.00024109,2]
[370409593,1752004249334,-468.68,0.00024109,2]
[370409594,1752004249343,-662.08,0.00024109,2]
[370409595,1752004249352,-465.26,0.00024109,2]
[370409596,1752004249362,-460.0,0.00024109,2]
[370409597,1752004249372,-1004.48,0.00024109,2]
[370409598,1752004249381,-846.66,0.00024173,2]
[370409599,1752004249391,-567.32498537,0.0002421,10]
[370409600,1752004249401,-500.0,0.00024219,2]
[370409601,1752004249411,-239.84119403,0.00024232,2]
[370409602,1752004249422,-846.66,0.00024273,3]
[370409603,1752004249432,-151.0,0.000243,7]
[370409604,1752004249441,-846.66,0.00024373,7]
[370409605,1752004249450,-460.0,0.00024383,2]
[370409606,1752004249460,-966.04,0.00024383,2]
[370409607,1752004249469,-711.5,0.00024383,2]
[370409608,1752004249479,-554.45,0.00024383,2]
[370409609,1752004249489,-541.54,0.00024383,2]
[370409610,1752004249498,-468.68,0.00024383,2]
[370409611,1752004249507,-662.08,0.00024383,2]
[370409612,1752004249518,-465.26,0.00024383,2]
[370409613,1752004249528,-460.0,0.00024383,2]
[370409614,1752004249541,-1004.48,0.00024383,2]
[370409615,1752004249550,-567.32498537,0.00024452,11]
[370409616,1752004249560,-846.66,0.00024473,7]
[370409617,1752004249569,-846.66,0.00024573,2]
[370409618,1752004249579,-168.0,0.00024588,2]
[370409619,1752004249588,-460.0,0.00024657,2]
[370409620,1752004249597,-966.04,0.00024657,2]
[370409621,1752004249608,-711.5,0.00024657,2]
[370409622,1752004249618,-554.45,0.00024657,2]
[370409623,1752004249628,-541.54,0.00024657,2]
[370409624,1752004249637,-468.68,0.00024657,2]
[370409625,1752004249647,-662.08,0.00024657,2]
[370409626,1752004249657,-465.26,0.00024657,2]
[370409627,1752004249667,-460.0,0.00024657,2]
[370409628,1752004249677,-1004.48,0.00024657,2]
[370409629,1752004249687,-150.0,0.00024658,2]
[370409630,1752004249697,-846.66,0.00024673,7]
[370409631,1752004249707,-567.32498537,0.00024693,11]
[370409632,1752004249717,-2000.0,0.000247,2]
[370409633,1752004249727,-846.66,0.00024773,2]
[370409634,1752004249737,-163.082623,0.00024787,4]
[370409635,1752004249746,-846.66,0.00024873,6]
[370409636,1752004249757,-151.0,0.000249,7]
[370409637,1752004249766,-151.0,0.000249,7]
[370409638,1752004249776,-151.0,0.000249,7]
[370409639,1752004249785,-151.0,0.000249,7]
[370409640,1752004249795,-151.0,0.000249,7]
[370409641,1752004249805,-151.0,0.000249,7]
[370409642,1752004249814,-230.51100374,0.000249,7]
[370409643,1752004249824,-11249.00913358,0.000249,2]
[370409644,1752004249968,-182879.99651445,0.000249,2]
[370409645,1752004250038,-460.0,0.00021095,2]
[370409646,1752004250048,-4340.0,0.000249,2]
[370409647,1752004250059,-418.0000021,0.000249,2]
[370409648,1752004250129,-460.0,0.00021369,2]
[370409649,1752004250138,-460.0,0.00021643,2]
[370409650,1752004250147,-460.0,0.00021917,2]
[370409651,1752004250156,-460.0,0.00022191,2]
[370409652,1752004250166,-74.27173491,0.00022465,2]
[370409653,1752004250178,-385.72826509,0.00022465,2]
[370409654,1752004250187,-288.91998447,0.00022739,2]
[370409655,1752004250199,-171.08001553,0.00022739,2]
[370409656,1752004250209,-6412.76386099,0.000249,2]
[370409657,1752004250225,-320.17165751,0.00023013,2]
[370409658,1752004250236,-139.82834249,0.00023013,2]
[370409659,1752004250246,-7085.11747866,0.000249,2]
[370409660,1752004250293,-164.782984,0.00020448,2]
[370409661,1752004250303,-164.782984,0.0002068,2]
[370409662,1752004250313,-164.782984,0.00020913,2]
[370409663,1752004250322,-460.0,0.00023287,2]
[370409664,1752004250332,-460.0,0.00023561,2]
[370409665,1752004250342,-503.25,0.00023835,2]
[370409666,1752004250351,-13661.23491405,0.000249,2]
[370409667,1752004250364,-499.950315,0.000249,2]
[370409668,1752004250379,-164.782984,0.00021145,2]
[370409669,1752004250389,-11622.69667611,0.000249,2]
[370409670,1752004250430,-164.782984,0.00021378,2]
[370409671,1752004250439,-164.782984,0.0002161,2]
[370409672,1752004250448,-164.782984,0.00021842,2]
[370409673,1752004250458,-164.782984,0.00022075,2]
[370409674,1752004250467,-164.782984,0.00022307,2]
[370409675,1752004250477,-12313.93207577,0.000249,2]
[370409676,1752004250488,-736.40236497,0.000249,2]
[370409677,1752004250500,-17926.46649506,0.000249,2]
[370409678,1752004450883,264.98478905,0.000222,69]
[370409679,1752004683166,1962.23720794,0.00018151,2]
[370409680,1752004960821,580.081511,0.00013699,2]
[370409683,1752005069636,200.0,0.000246,120]
[370409691,1752005143530,24900.0,0.00017751,2]
[370409803,1752005436514,-584.62068407,0.00018556,2]
[370409805,1752005436672,-537.35,0.00018556,2]
[370409817,1752005437874,-3835.69022642,0.00018556,2]
[370409818,1752005437884,-1233.04253286,0.000186,2]
[370409819,1752005437894,-1621.61655074,0.000186,2]
[370409820,1752005437905,-293.67692497,0.00018656,2]
[370409821,1752005437919,-300.0,0.00018662,2]
[370409822,1752005437928,-300.0,0.00018662,2]
[370409823,1752005437938,-300.0,0.00018662,2]
[370409824,1752005437947,-300.0,0.00018662,2]
[370409825,1752005437959,-1200.0,0.00018662,2]
[370409826,1752005437968,-300.0,0.00018662,2]
[370409827,1752005437979,-500.0,0.00018666,2]
[370409828,1752005437989,-271.89907502,0.00018666,2]
[370409829,1752005438000,-500.0,0.00018666,2]
[370409830,1752005438009,-500.0,0.00018666,2]
[370409831,1752005438019,-500.0,0.00018666,2]
[370409832,1752005438028,-500.0,0.00018666,2]
[370409833,1752005438038,-500.0,0.00018666,2]
[370409834,1752005438048,-500.0,0.00018666,2]
[370409835,1752005438057,-500.0,0.00018666,2]
[370409836,1752005438066,-500.0,0.00018666,2]
[370409837,1752005438076,-500.0,0.00018666,2]
[370409838,1752005438086,-500.0,0.00018666,2]
[370409839,1752005438096,-500.0,0.00018666,2]
[370409840,1752005438106,-500.0,0.00018666,2]
[370409841,1752005438115,-500.0,0.00018666,2]
[370409842,1752005438125,-500.0,0.00018666,2]
[370409843,1752005438135,-500.0,0.00018666,2]
[370409844,1752005438144,-329.02651694,0.00018666,2]
[370409845,1752005438154,-500.0,0.00018666,2]
[370409846,1752005438163,-500.0,0.00018666,2]
[370409847,1752005438173,-534.4425289,0.00018666,2]
[370409848,1752005438182,-500.0,0.00018666,2]
[370409849,1752005438191,-624.10977023,0.00018666,2]
[370409850,1752005438202,-10772.88483512,0.00018667,2]
[370409851,1752005438242,-359227.11516488,0.00018667,2]
[370409852,1752005438251,-151.0,0.000187,2]
[370409853,1752005438261,-1233.04253285,0.00018857,2]
[370409854,1752005438270,-150.0,0.000189,2]
[370409855,1752005438280,-5454.6538683,0.00019,2]
[370409856,1752005438290,-2399.13259441,0.00019083,2]